bitfinex/quotes_ETHUSD_20241101
["timestamp","ask_amount","ask_price","bid_price","bid_amount"]
[1730423885090,3.95514,2528.4,2527.9,3.95573]
[1730423885292,0.7929,2528.4,2528.0,1.04629933]
[1730423885464,3.95524,2528.3,2527.8,0.29519933]
[1730423885666,3.95524,2528.3,2527.8,0.7569]
[1730423885667,3.95563,2528.1,2527.8,0.7569]
[1730423885863,3.95579,2528.0,2527.7,0.29519933]
[1730423886080,5.96793566,2528.1,2527.6,0.7569]
[1730423886308,5.96793566,2528.1,2527.6,1.05215013]
[1730423886309,3.95585,2527.9,2527.6,1.05215013]
[1730423887085,3.95585,2527.9,2527.6,0.7569]
[1730423887493,3.95585,2527.9,2527.3,4.78092413]
[1730423887494,0.7718,2527.8,2527.3,3.95671]
[1730423887680,0.7718,2527.8,2527.2,4.91639281]
[1730423887681,4.7279,2527.8,2527.2,4.91639281]
[1730423888005,4.7279,2527.8,2527.3,3.95678]
[1730423889406,3.95543,2528.2,2527.6,4.75722]
[1730423889565,3.95543,2528.2,2527.6,4.83633846]
[1730423889768,3.95543,2528.2,2527.6,5.83391487]
[1730423890203,3.95543,2528.2,2527.7,3.95615]
[1730423890600,3.95554,2528.1,2527.6,1.87769487]
[1730423890807,5.13864566,2528.1,2527.6,0.801]
[1730423891101,5.13864566,2528.1,2527.6,0.8801185]
[1730423891308,5.13864566,2528.1,2527.6,0.801]
[1730423891506,3.95569,2528.0,2527.6,0.801]
[1730423891671,1.98710566,2527.9,2527.4,0.7545]
[1730423891871,3.95569,2528.0,2527.4,4.71103]
[1730423892187,3.95588,2527.9,2527.4,4.71103]
[1730423893318,3.95588,2527.9,2527.4,0.7545]
[1730423893474,3.95588,2527.9,2527.4,1.71037634]
[1730423894069,3.95588,2527.9,2527.4,5.66698634]
[1730423894306,5.89938566,2528.1,2527.4,5.66698634]
[1730423894526,12.21011,2528.3,2527.8,0.818]
[1730423894674,13.94494957,2528.3,2527.8,0.818]
[1730423895173,3.95538,2528.2,2527.8,0.818]
[1730423896902,7.46,2528.3,2528.1,4.75552]
[1730423897270,7.46,2528.3,2528.2,3.95538]
[1730423897473,7.46,2528.3,2528.2,4.826494]
[1730423897782,4.78454,2528.8,2528.2,4.826494]
[1730423897783,4.78454,2528.8,2528.2,0.871114]
[1730423897997,8.73911,2528.8,2528.1,0.8001]
[1730423898212,3.9546,2528.7,2528.2,3.95538]
[1730423899810,3.95481,2528.6,2528.1,0.8001]
[1730423900016,3.95481,2528.6,2528.1,4.75558]
[1730423900184,3.95481,2528.6,2528.1,0.8001]
[1730423900382,3.95481,2528.6,2528.2,0.871131]
[1730423901012,5.13770566,2528.7,2528.2,0.871131]
[1730423901013,3.95493,2528.5,2528.2,0.871131]
[1730423902932,5.13770566,2528.7,2528.2,0.871131]
[1730423903442,3.95477,2528.6,2528.2,0.871131]
[1730423906032,0.83,2528.8,2528.2,0.871131]
[1730423906236,3.9542,2529.0,2528.4,0.7898]
[1730423907206,3.9542,2529.0,2528.5,3.95487]
[1730423907408,3.9543,2528.9,2528.4,0.7898]
[1730423907593,3.9543,2528.9,2528.4,4.74482]
[1730423907793,3.9543,2528.9,2528.4,4.82391348]
[1730423908099,3.9543,2528.9,2528.5,0.99621191]
[1730423908940,3.9543,2528.9,2528.5,4.95112191]
[1730423909937,3.9543,2528.9,2528.5,0.99621191]
[1730423912144,9.09125566,2529.1,2528.5,4.95103191]
[1730423912306,3.95423,2529.0,2528.6,0.7921]
[1730423912819,3.9543,2528.9,2528.6,0.7921]
[1730423913210,7.90867,2528.9,2528.6,0.7921]
[1730423913431,7.90869,2528.9,2528.6,0.7921]
[1730423914200,3.9543,2528.9,2528.6,0.7921]
[1730423918539,3.95417,2529.0,2528.6,0.7921]
[1730423918944,3.9543,2528.9,2528.6,0.7921]
[1730423920406,7.90869,2528.9,2528.6,0.7921]
[1730423920722,3.9543,2528.9,2528.6,0.7921]
[1730423924576,3.95455,2528.8,2528.6,0.7921]
[1730423924850,1.18310566,2529.1,2528.2,3.95527]
[1730423924851,7.90841,2529.0,2528.4,3.95494]
[1730423925057,7.90841,2529.0,2528.5,0.8017]
[1730423925422,3.95419,2529.0,2528.5,0.8017]
[1730423925622,7.90842,2529.0,2528.5,0.8017]
[1730423926114,3.95419,2529.0,2528.5,0.8017]
[1730423926320,3.95429,2528.9,2528.5,0.8017]
[1730423927126,3.95419,2529.0,2528.5,4.75659]
[1730423927914,3.95429,2528.9,2528.5,4.75659]
[1730423928148,3.95429,2528.9,2528.5,0.8017]
[1730423940729,7.90867,2528.9,2528.5,0.8017]
[1730423941033,7.90867,2528.9,2528.3,3.95508]
[1730423941034,3.95475,2528.6,2528.3,0.793]
[1730423941236,3.955,2528.5,2528.3,0.793]
[1730423941422,3.955,2528.5,2528.1,0.82414903]
[1730423941423,3.95507,2528.4,2528.1,0.793]
[1730423941941,5.13843566,2528.3,2527.9,7.35]
[1730423942098,9.09376566,2528.3,2527.9,7.35]
[1730423942300,3.95539,2528.2,2527.9,7.35]
[1730423942641,3.95539,2528.2,2527.7,5.59321903]
[1730423942958,3.95539,2528.2,2527.8,1.32359453]
[1730423943244,3.95539,2528.2,2527.9,0.29585195]
[1730423943596,3.95539,2528.2,2527.7,4.84818377]
[1730423943912,5.13843566,2528.3,2527.8,0.29579193]
[1730423943913,4.76266,2528.1,2527.8,0.29579193]
[1730423944110,4.76266,2528.1,2527.7,0.813]
[1730423944311,4.76266,2528.1,2527.8,0.29579531]
[1730423944526,3.956,2527.8,2527.7,1.02713247]
[1730423944727,3.95616,2527.7,2527.2,2.74590264]
[1730423944899,1.18310566,2527.9,2527.3,1.32335583]
[1730423945101,1.18310566,2527.9,2527.2,2.74590264]
[1730423945102,3.95655,2527.5,2527.2,2.47598089]
[1730423945297,3.95655,2527.5,2527.2,1.44836774]
[1730423946949,3.9564,2527.6,2527.2,1.44836774]
[1730423947465,3.95648,2527.5,2527.2,1.44836774]
[1730423950728,3.9564,2527.6,2527.2,0.66446774]
[1730423950958,3.95666,2527.4,2527.2,0.66446774]
[1730423951324,7.91339,2527.4,2527.0,0.7502]
[1730423951525,1.18310566,2527.3,2526.8,0.7502]
[1730423951722,1.18310566,2527.3,2526.6,0.7502]
[1730423951723,1.18310566,2527.1,2526.6,0.7502]
[1730423951927,3.95736,2527.0,2526.6,0.7502]
[1730423952659,3.95715,2527.1,2526.6,0.7502]
[1730423952957,3.95715,2527.1,2526.6,5.18471596]
[1730423954163,3.95715,2527.1,2526.6,1.22687596]
[1730423954164,7.91436,2527.1,2526.6,1.22687596]
[1730423954362,3.95715,2527.1,2526.6,1.22687596]
[1730423955031,3.95715,2527.1,2526.6,5.18472596]
[1730423957361,9.91343566,2527.3,2526.6,5.18472596]
[1730423957584,3.95698,2527.2,2526.7,0.9142626]
[1730423958739,3.95712,2527.1,2526.7,0.9142626]
[1730423959065,3.95712,2527.1,2526.6,5.18472596]
[1730423959364,5.95649566,2527.3,2526.6,5.18472596]
[1730423959569,3.95697,2527.2,2526.6,5.18472596]
[1730423960564,3.95711,2527.1,2526.6,1.22687596]
[1730423960768,3.95711,2527.1,2526.6,0.7502]
[1730423961393,3.95711,2527.1,2526.6,4.70806]
[1730423962665,3.95711,2527.1,2526.6,4.70807]
[1730423962666,5.14021566,2527.1,2526.6,4.70807]
[1730423963039,3.95727,2527.0,2526.6,0.7502]
[1730423963444,8.69397,2526.9,2526.4,0.7773]
[1730423963890,3.95767,2526.8,2526.4,0.7773]
[1730423964057,5.14086566,2526.7,2526.1,6.95858]
[1730423964261,5.14086566,2526.7,2526.2,0.7773]
[1730423964262,9.09869566,2526.7,2526.2,0.7773]
[1730423964584,5.14086566,2526.7,2526.2,0.7773]
[1730423964745,9.09874566,2526.7,2526.2,0.7773]
[1730423965380,5.14086566,2526.7,2526.2,0.7773]
[1730423965557,9.09868566,2526.7,2526.2,0.7773]
[1730423966456,3.95804,2526.5,2526.2,0.7773]
[1730423967248,10.08650423,2526.7,2526.2,0.7773]
[1730423967755,6.12863423,2526.7,2526.2,0.7773]
[1730423967953,5.14086566,2526.7,2526.2,4.73579]
[1730423969401,3.95776,2526.7,2526.2,4.73579]
[1730423969966,9.09868566,2526.7,2526.2,0.7773]
[1730423970166,0.7743,2526.5,2526.1,3.95866]
[1730423970496,3.95791,2526.6,2526.1,7.91724]
[1730423970706,3.95791,2526.6,2526.1,4.95034457]
[1730423971075,4.73206,2526.7,2526.2,3.95851]
[1730423971270,0.7743,2526.9,2526.3,4.77565]
[1730423971487,7.46,2527.0,2526.5,3.95802]
[1730423971797,3.95717,2527.1,2526.5,3.95802]
[1730423971996,3.95726,2527.0,2526.5,3.95796]
[1730423973401,3.95726,2527.0,2526.5,4.94962357]
[1730423973777,3.95729,2527.0,2526.5,4.94962357]
[1730423974391,3.95729,2527.0,2526.5,3.95796]
[1730423976718,3.95729,2527.0,2526.5,7.91592]
[1730423976932,3.95729,2527.0,2526.5,3.95796]
[1730423977821,3.95729,2527.0,2526.5,3.95793]
[1730423979084,7.91464,2527.0,2526.5,3.95793]
[1730423979284,8.90184457,2527.0,2526.5,3.95793]
[1730423979759,4.94449457,2527.0,2526.5,3.95793]
[1730423980499,3.95729,2527.0,2526.5,3.95793]
[1730423980699,7.91469,2527.0,2526.5,3.95793]
[1730423981786,3.95752,2526.9,2526.4,0.8173]
[1730423981989,5.14062566,2526.9,2526.4,0.8173]
[1730423982917,5.14062566,2526.9,2526.4,4.77549]
[1730423983305,3.95752,2526.9,2526.4,4.77549]
[1730423984337,3.9578,2526.7,2526.2,0.7631]
[1730423984637,3.95788,2526.6,2526.2,0.7631]
[1730423988229,4.77229,2526.8,2526.2,0.7631]
[1730423988428,8.72994,2526.8,2526.3,3.95835]
[1730423988627,1.27113492,2526.8,2526.2,0.7631]
[1730423988799,3.95799,2526.6,2526.2,0.7631]
[1730423989632,7.91597,2526.6,2526.2,0.7631]
[1730423989948,3.95806,2526.5,2526.2,0.7631]
[1730423990700,0.7669,2526.4,2526.1,1.02586733]
[1730423990901,5.14098566,2526.7,2526.2,0.7598]
[1730423991101,4.54933857,2526.7,2526.2,4.71831]
[1730423991714,8.50721857,2526.7,2526.2,0.7598]
[1730423992118,3.95789,2526.6,2526.2,0.7598]
[1730423993021,4.54933857,2526.7,2526.2,4.71829]
[1730423993221,4.54933857,2526.7,2526.2,0.7598]
[1730423993416,4.54928857,2526.7,2526.2,0.7598]
[1730423993620,8.50712857,2526.7,2526.2,0.7598]
[1730423993838,3.95791,2526.6,2526.2,0.7598]
[1730423994774,4.76795,2526.5,2526.1,3.95853]
[1730423994934,4.76795,2526.5,2526.2,0.7645]
[1730423995318,3.95788,2526.6,2526.2,0.7645]
[1730423995759,4.54928857,2526.7,2526.2,4.72297]
[1730423996549,4.54928857,2526.7,2526.0,0.8148]
[1730423996550,1.18310566,2526.3,2526.0,0.8148]
[1730423996754,1.18310566,2526.3,2525.8,0.8148]
[1730423996755,3.95867,2526.1,2525.8,0.8148]
[1730423996909,3.95898,2525.9,2525.8,0.8148]
[1730423997604,5.14179566,2526.1,2525.8,0.8148]
[1730423997605,9.10060566,2526.1,2525.8,0.8148]
[1730423997811,8.90605057,2526.1,2525.8,0.8148]
[1730423998313,2.17165623,2526.1,2525.6,0.808]
[1730423998554,3.95908,2525.9,2525.6,0.808]
[1730423999829,7.91794,2526.0,2525.6,0.808]
[1730424000224,3.95912,2525.9,2525.6,0.808]
[1730424002530,3.95897,2526.0,2525.6,0.808]
[1730424004152,3.95897,2526.0,2525.4,0.7874]
[1730424004153,3.95917,2525.8,2525.4,0.7874]
[1730424004363,3.95977,2525.4,2525.2,0.7874]
[1730424005180,1.18310566,2525.5,2524.9,0.7874]
[1730424005181,3.96024,2525.1,2524.9,0.7874]
[1730424005340,5.14334566,2525.1,2524.9,0.7874]
[1730424005545,1.18310566,2525.1,2524.9,0.7874]
[1730424005841,3.96008,2525.2,2524.9,0.7874]
[1730424007171,3.96002,2525.3,2524.9,0.7874]
[1730424007566,7.29670762,2525.5,2524.9,0.7874]
[1730424007567,8.6833,2525.5,2524.9,4.74786]
[1730424007770,3.95977,2525.4,2524.9,4.74786]
[1730424010054,3.95977,2525.4,2524.4,3.96131]
[1730424010055,4.73903,2525.9,2525.1,0.7833]
[1730424010275,8.69811,2525.9,2525.3,3.95983]
[1730424010461,3.95925,2525.8,2525.4,0.7833]
[1730424011967,0.78,2525.9,2525.5,3.9596]
[1730424012171,3.95867,2526.1,2525.4,1.257613]
[1730424012384,3.95867,2526.1,2524.9,2.57312762]
[1730424012385,3.95979,2525.4,2525.0,0.7915]
[1730424012865,3.95994,2525.3,2525.0,0.7915]
[1730424013596,3.95994,2525.3,2524.7,3.96077]
[1730424013802,3.95994,2525.3,2524.8,0.7915]
[1730424014100,4.76639,2525.4,2524.8,4.7522]
[1730424014273,3.95979,2525.4,2524.9,3.9605]
[1730424014611,4.76615,2525.6,2525.0,0.7915]
[1730424014762,3.95955,2525.6,2525.0,0.7915]
[1730424015688,3.95955,2525.6,2525.0,8.7121]
[1730424015890,3.95955,2525.6,2525.0,4.7518]
[1730424016062,3.95963,2525.5,2525.0,4.7518]
[1730424016262,3.95955,2525.6,2525.0,4.75178]
[1730424016776,3.9597,2525.5,2525.0,4.75178]
[1730424017320,7.92034,2525.2,2524.7,0.762]
[1730424017865,3.96017,2525.2,2524.7,0.762]
[1730424018065,3.96032,2525.1,2524.7,0.762]
[1730424018266,3.96017,2525.2,2524.7,0.762]
[1730424018267,7.92036,2525.2,2524.7,0.762]
[1730424018878,3.96017,2525.2,2524.7,0.762]
[1730424019700,7.92037,2525.2,2524.7,0.762]
[1730424020501,3.96017,2525.2,2524.7,0.762]
[1730424020688,7.92037,2525.2,2524.7,0.762]
[1730424020888,7.92034,2525.2,2524.7,0.762]
[1730424021090,3.96027,2525.1,2524.7,0.762]
[1730424022582,0.8177,2525.1,2524.4,3.96132]
[1730424022906,4.51052,2525.0,2524.4,3.96133]
[1730424023083,3.96072,2524.8,2524.3,4.77237]
[1730424023285,3.96052,2525.0,2524.5,0.8109]
[1730424024007,3.9605,2525.0,2524.5,0.8109]
[1730424024513,7.92099,2525.0,2524.5,0.8109]
[1730424024848,7.92097,2525.0,2524.5,0.8109]
[1730424025170,3.96056,2524.9,2524.5,0.8109]
[1730424025575,3.96102,2524.6,2524.0,0.8309]
[1730424026706,3.9612,2524.5,2524.0,0.8309]
[1730424027277,4.72502,2524.6,2523.8,0.41060554]
[1730424027278,3.96144,2524.4,2523.8,0.41060554]
[1730424027481,3.96212,2523.9,2523.3,4.79295]
[1730424027804,3.9625,2523.7,2523.3,0.83]
[1730424028302,3.96221,2523.9,2523.3,0.83]
[1730424028500,3.96221,2523.9,2523.3,4.79306]
[1730424028501,7.92447,2523.9,2523.3,4.79306]
[1730424029020,3.9622,2523.9,2523.3,0.83]
[1730424029235,3.96248,2523.7,2523.3,0.83]
[1730424030397,8.57794276,2523.9,2523.3,4.79302]
[1730424030595,3.96205,2524.0,2523.4,3.96281]
[1730424031407,4.72574,2524.2,2523.6,3.96257]
[1730424031724,3.96181,2524.1,2523.7,0.772]
[1730424033291,3.96197,2524.0,2523.7,0.772]
[1730424034525,7.92404,2524.0,2523.7,0.772]
[1730424034912,3.96197,2524.0,2523.7,0.772]
[1730424035221,4.72574,2524.2,2523.7,0.772]
[1730424035398,3.96111,2524.6,2523.9,0.8302]
[1730424035603,3.9609,2524.7,2524.2,0.8302]
[1730424035806,3.96077,2524.8,2524.2,4.79175]
[1730424035989,4.436937,2524.8,2524.2,4.79175]
[1730424036532,3.96105,2524.6,2524.2,0.8302]
[1730424036830,3.96049,2525.0,2524.3,3.96139]
[1730424036993,3.96049,2525.0,2524.2,0.8302]
[1730424036994,3.96071,2524.8,2524.2,4.79174]
[1730424037194,3.96071,2524.8,2524.2,9.232454]
[1730424038391,3.96071,2524.8,2524.3,3.96141]
[1730424039236,3.96015,2525.2,2524.5,0.8255]
[1730424039527,4.75306,2525.4,2524.8,0.8255]
[1730424039528,3.95999,2525.3,2524.8,0.8255]
[1730424039689,3.95986,2525.4,2524.8,4.78607]
[1730424039886,9.04819626,2525.4,2524.8,4.78607]
[1730424040190,3.95998,2525.3,2524.8,4.78607]
[1730424040390,5.08830626,2525.4,2524.8,0.8255]
[1730424040627,3.96018,2525.2,2524.8,0.8255]
[1730424041195,5.08829626,2525.4,2524.8,0.8255]
[1730424041420,3.95995,2525.3,2524.8,0.8255]
[1730424041738,3.95995,2525.3,2524.8,4.78619]
[1730424042028,3.95995,2525.3,2524.8,0.8255]
[1730424042990,3.96009,2525.2,2524.8,0.8255]
[1730424048412,3.96072,2524.8,2524.3,0.7856]
[1730424048741,3.96087,2524.7,2524.3,0.7856]
[1730424049248,7.9222,2524.6,2524.3,0.7856]
[1730424049458,0.79222,2524.5,2524.0,4.74755]
[1730424049740,3.96121,2524.5,2524.0,4.74755]
[1730424050044,3.96121,2524.5,2524.0,0.7856]
[1730424050353,3.96121,2524.5,2523.8,7.92439]
[1730424050354,3.96167,2524.2,2523.8,0.7856]
[1730424050555,3.96196,2524.0,2523.4,3.96278]
[1730424050708,5.166137,2524.2,2523.5,0.7856]
[1730424050910,3.96189,2524.1,2523.6,3.96254]
[1730424051115,3.96189,2524.1,2523.5,0.7856]
[1730424051317,3.96197,2524.0,2523.5,4.74833]
[1730424051730,3.96197,2524.0,2523.5,0.7856]
[1730424052017,3.96236,2523.8,2523.5,0.7856]
[1730424052218,3.96257,2523.7,2523.5,0.7856]
[1730424052446,0.396236,2523.8,2523.2,0.7972]
[1730424052655,3.96306,2523.3,2522.9,0.8043]
[1730424054349,3.96294,2523.4,2522.9,0.8043]
[1730424054532,1.3292,2523.7,2522.9,0.8043]
[1730424054909,3.96252,2523.7,2523.0,3.9634]
[1730424055065,3.96252,2523.7,2523.0,4.69748276]
[1730424055559,3.96252,2523.7,2523.2,3.96321]
[1730424056355,4.3604,2524.0,2523.4,4.7703]
[1730424056356,4.77242,2524.0,2523.4,4.7703]
[1730424056555,3.96202,2524.0,2523.4,4.7702]
[1730424056757,3.96202,2524.0,2523.4,8.73301]
[1730424057267,3.96202,2524.0,2523.4,4.7702]
[1730424057635,0.6070611,2524.0,2523.4,4.7702]
[1730424057956,3.96222,2523.9,2523.4,0.8074]
[1730424058178,0.7689,2523.8,2523.1,0.8074]
[1730424058361,2.57312762,2523.5,2522.8,0.7795]
[1730424058686,3.96306,2523.3,2522.8,0.7795]
[1730424058848,3.96336,2523.2,2522.8,0.7795]
[1730424059490,3.96306,2523.3,2522.8,0.7795]
[1730424059637,3.96323,2523.2,2522.8,0.7795]
[1730424059985,3.96306,2523.3,2522.8,0.7795]
[1730424060341,3.96323,2523.2,2522.8,0.7795]
[1730424060961,3.96306,2523.3,2522.8,0.7795]
[1730424061355,3.96323,2523.2,2522.8,0.7795]
[1730424063584,3.96309,2523.3,2522.8,4.74334]
[1730424064239,4.61648276,2523.4,2522.8,4.74334]
[1730424064240,3.96323,2523.2,2522.8,0.7795]
[1730424065067,3.96291,2523.4,2522.8,1.650251]
[1730424065389,3.96238,2523.8,2523.3,0.8087]
[1730424065745,3.96267,2523.6,2523.3,0.8087]
[1730424065970,4.358937,2523.6,2523.3,0.8087]
[1730424066186,3.9629,2523.4,2523.3,0.8087]
[1730424066701,3.9629,2523.4,2523.0,0.7583]
[1730424067206,7.92535,2523.6,2523.0,4.72182]
[1730424067403,3.96267,2523.6,2523.0,5.6774351]
[1730424067585,7.92534,2523.6,2523.0,5.6774351]
[1730424068208,3.96267,2523.6,2523.1,3.96334]
[1730424068705,7.92414,2524.0,2523.4,3.96276]
[1730424069002,3.96214,2523.9,2523.4,3.96276]
[1730424069304,3.96207,2524.0,2523.3,0.8284]
[1730424069501,0.8289,2523.8,2523.3,0.8284]
[1730424069714,0.8289,2523.8,2523.0,3.9635]
[1730424069715,3.9629,2523.4,2523.0,0.8284]
[1730424070010,3.96325,2523.2,2523.0,0.8284]
[1730424070369,3.96325,2523.2,2522.4,3.96438]
[1730424070370,3.96363,2523.0,2522.7,0.7645]
[1730424071285,3.9638,2522.9,2522.7,0.7645]
[1730424071885,3.96372,2522.9,2522.7,0.7645]
[1730424072069,3.96363,2523.0,2522.7,0.7645]
[1730424072506,3.96378,2522.9,2522.7,0.7645]
[1730424073407,3.96363,2523.0,2522.5,0.7597]
[1730424073608,3.96363,2523.0,2522.5,4.724]
[1730424073820,3.96363,2523.0,2522.5,0.7597]
[1730424074121,7.92665,2523.2,2522.5,4.72389]
[1730424074280,3.96347,2523.1,2522.5,4.72389]
[1730424075220,3.96329,2523.2,2522.5,4.72389]
[1730424075423,3.96355,2523.0,2522.5,4.72389]
[1730424075736,3.96355,2523.0,2522.5,0.7597]
[1730424076607,7.92718,2523.0,2522.5,0.7597]
[1730424077022,0.792718,2523.0,2522.5,0.7597]
[1730424077184,4.78863,2523.4,2522.2,1.42543479]
[1730424077185,3.96409,2522.7,2522.2,1.42543479]
[1730424077529,3.96432,2522.5,2522.2,1.42543479]
[1730424077687,3.96379,2522.9,2522.2,3.96478]
[1730424077882,3.96379,2522.9,2522.4,3.96439]
[1730424078388,3.0,2523.2,2522.6,3.96405]
[1730424078389,3.96324,2523.2,2522.6,3.96405]
[1730424079182,4.79367,2523.3,2522.5,0.7824]
[1730424079183,3.96347,2523.1,2522.5,0.7824]
[1730424079451,3.96347,2523.1,2522.3,0.8162]
[1730424079452,3.96447,2522.5,2522.3,0.8162]
[1730424079598,4.51353,2523.0,2522.3,0.8162]
[1730424079796,3.96408,2522.7,2522.3,0.8162]
[1730424080300,3.96442,2522.5,2522.3,0.8162]
[1730424080518,7.92823,2522.7,2522.3,0.8162]
[1730424080714,3.96425,2522.6,2522.3,0.8162]
[1730424081087,3.96408,2522.7,2522.3,0.8162]
[1730424081295,3.96386,2522.8,2522.3,0.8162]
[1730424081831,3.96375,2522.9,2522.3,0.8162]
[1730424082013,3.96375,2522.9,2522.3,0.8954898]
[1730424082332,7.92754,2522.9,2522.3,0.8954898]
[1730424082628,3.96375,2522.9,2522.3,1.30221898]
[1730424083334,3.96353,2523.0,2522.3,5.34604351]
[1730424084431,4.77107,2523.1,2522.3,5.34604351]
[1730424084432,3.96373,2522.9,2522.3,5.34604351]
[1730424084596,7.92751,2522.9,2522.3,1.38150351]
[1730424084963,3.96387,2522.8,2522.3,1.38150351]
[1730424085629,3.96373,2522.9,2522.3,1.38150351]
[1730424085832,7.92757,2522.9,2522.3,1.38150351]
[1730424086194,3.96373,2522.9,2522.3,1.38150351]
[1730424086499,3.96373,2522.9,2522.4,0.53461435]
[1730424086904,7.92752,2522.9,2522.4,0.53461435]
[1730424087209,3.96373,2522.9,2522.4,0.53461435]
[1730424088215,3.96316,2523.3,2522.6,0.7823]
[1730424088616,3.96323,2523.2,2522.7,0.7823]
[1730424089464,1.563739,2523.2,2522.7,0.7823]
[1730424089618,3.96384,2522.8,2522.3,0.7795]
[1730424090026,3.96402,2522.7,2522.3,0.7795]
[1730424090230,3.96442,2522.5,2522.3,0.7795]
[1730424090740,3.96447,2522.4,2522.3,0.7795]
[1730424090929,3.96442,2522.5,2522.3,0.7795]
[1730424091451,3.96447,2522.4,2522.3,0.7795]
[1730424091654,3.96441,2522.5,2522.3,0.7795]
[1730424091955,7.92887,2522.5,2522.3,0.7795]
[1730424092158,7.92823,2522.7,2522.3,0.7795]
[1730424092323,3.9641,2522.7,2522.3,0.7795]
[1730424093043,7.9282,2522.7,2522.3,0.7795]
[1730424093360,3.9641,2522.7,2522.3,0.7795]
[1730424093551,3.9641,2522.7,2522.3,1.26187345]
[1730424094458,3.964,2522.7,2522.3,1.26187345]
[1730424095061,0.8259,2523.0,2522.5,0.8088]
[1730424095062,3.96355,2523.0,2522.5,0.8088]
[1730424095232,3.96317,2523.3,2522.7,0.8088]
[1730424095416,3.96323,2523.2,2522.7,1.286085]
[1730424095725,0.797,2523.4,2522.7,0.8088]
[1730424095726,3.96378,2522.9,2522.7,0.8088]
[1730424096541,0.8283,2522.9,2522.4,0.8076]
[1730424096736,3.96432,2522.5,2522.2,0.8322]
[1730424097168,3.96456,2522.4,2522.2,0.8322]
[1730424099170,3.96462,2522.4,2522.0,0.8253]
[1730424101550,7.92873,2522.5,2522.0,1.70089]
[1730424102266,3.96432,2522.5,2522.0,1.70089]
[1730424102578,7.92873,2522.5,2522.0,1.70089]
[1730424102737,3.96432,2522.5,2522.0,1.70089]
[1730424102944,3.96457,2522.4,2522.0,1.70089]
[1730424103638,3.96432,2522.5,2522.0,1.70089]
[1730424104153,3.96411,2522.7,2522.2,0.8289]
[1730424104544,7.92824,2522.7,2522.2,0.8289]
[1730424104742,3.96424,2522.6,2522.2,0.8289]
[1730424104992,3.96432,2522.5,2522.2,0.8289]
[1730424105551,3.96421,2522.6,2522.2,0.8289]
[1730424105893,7.92822,2522.7,2522.2,1.46123059]
[1730424106285,3.96409,2522.7,2522.2,1.46123059]
[1730424106573,3.96409,2522.7,2522.2,0.8289]
[1730424106574,3.96432,2522.5,2522.2,0.8289]
[1730424107739,7.92822,2522.7,2522.2,0.8289]
[1730424108240,3.96419,2522.6,2522.2,0.8289]
[1730424108643,3.96433,2522.5,2522.2,0.8289]
[1730424109176,3.96425,2522.6,2522.2,0.8289]
[1730424111274,3.96373,2522.9,2522.3,0.7894]
[1730424111479,3.96373,2522.9,2522.3,3.96449]
[1730424111768,3.96373,2522.9,2522.4,0.86868035]
[1730424112659,3.96373,2522.9,2522.4,0.7894]
[1730424112898,3.96373,2522.9,2522.4,1.264808]
[1730424113573,3.96395,2522.8,2522.4,1.264808]
[1730424115372,0.8237,2523.2,2522.4,1.264808]
[1730424115573,3.9641,2522.7,2522.4,0.7894]
[1730424117463,3.96361,2523.0,2522.4,0.7894]
[1730424117670,3.9644,2522.5,2522.2,0.7501]
[1730424118007,3.96448,2522.4,2522.2,0.7501]
[1730424118363,3.9644,2522.5,2522.2,0.7501]
[1730424118570,7.92881,2522.5,2522.2,0.7501]
[1730424119806,3.9644,2522.5,2522.2,0.7501]
[1730424119980,3.96451,2522.4,2522.2,0.7501]
[1730424121064,3.96463,2522.3,2522.2,0.7501]
[1730424121681,3.96449,2522.4,2522.2,0.7501]
[1730424121883,7.92905,2522.4,2522.2,0.7501]
[1730424122087,3.96449,2522.4,2522.2,0.7501]
[1730424122610,3.96463,2522.3,2522.2,0.7501]
[1730424122769,3.96449,2522.4,2522.2,0.7501]
[1730424123106,7.92907,2522.4,2522.2,0.7501]
[1730424123275,7.92907,2522.4,2521.8,1.29820016]
[1730424123276,3.96463,2522.3,2521.8,1.29820016]
[1730424123476,0.792907,2522.4,2521.7,0.7584]
[1730424123477,3.96527,2521.9,2521.7,0.7584]
[1730424123702,3.96542,2521.8,2521.7,0.7584]
[1730424123903,3.96542,2521.8,2521.5,0.7562]
[1730424124288,3.96542,2521.8,2521.6,0.29719455]
[1730424124489,3.96542,2521.8,2521.5,0.7562]
[1730424124673,3.96542,2521.8,2521.6,0.29711035]
[1730424124868,3.96542,2521.8,2521.5,0.7562]
[1730424125702,3.96563,2521.7,2521.5,0.7562]
[1730424125875,3.96542,2521.8,2521.5,0.7562]
[1730424127849,3.96564,2521.7,2521.5,0.7562]
[1730424128173,3.96564,2521.7,2521.2,4.0888784]
[1730424128174,4.73729,2521.7,2521.3,1.0487253]
[1730424128292,3.96582,2521.6,2521.3,0.7518]
[1730424129137,3.96582,2521.6,2521.2,0.1226284]
[1730424129138,3.96592,2521.5,2521.2,0.1226284]
[1730424129337,3.96606,2521.4,2521.2,0.1226284]
[1730424129830,3.9662,2521.3,2521.2,0.1226284]
[1730424130395,4.7379,2521.3,2521.2,0.1226284]
[1730424131292,5.2879,2521.3,2521.2,0.1226284]
[1730424131798,10.86607018,2521.3,2521.2,0.1226284]
[1730424132023,4.78799,2520.4,2519.9,0.8174]
[1730424132228,3.96738,2520.6,2519.9,0.8174]
[1730424132547,3.96773,2520.4,2519.9,0.8174]
[1730424132743,3.9679,2520.3,2519.9,0.8174]
[1730424133098,3.96739,2520.6,2519.9,0.8174]